bitfinex/quotes_BTCUSD_20250428
["timestamp","ask_amount","ask_price","bid_price","bid_amount"]
[1745853325783,0.001,94201.0,94199.0,0.10689014]
[1745853325980,0.35957159,94219.0,94199.0,0.10689014]
[1745853326547,0.36364657,94210.0,94199.0,0.10689014]
[1745853326789,0.35957159,94219.0,94199.0,0.10689014]
[1745853326994,0.01957159,94218.0,94199.0,0.10689014]
[1745853327370,0.36364657,94210.0,94197.0,0.4105543]
[1745853327754,0.34,94209.0,94197.0,0.4105543]
[1745853328178,0.34978906,94209.0,94197.0,0.4105543]
[1745853328711,0.36936065,94209.0,94197.0,0.4105543]
[1745853329116,0.37670591,94209.0,94197.0,0.4105543]
[1745853329657,0.01957159,94208.0,94197.0,0.4105543]
[1745853330069,0.36364657,94207.0,94197.0,0.4105543]
[1745853330303,0.35957159,94206.0,94197.0,0.4105543]
[1745853330636,0.01957159,94205.0,94197.0,0.4105543]
[1745853330967,0.35957159,94206.0,94197.0,0.4105543]
[1745853331171,0.02691685,94206.0,94198.0,0.10901313]
[1745853331384,0.02691685,94206.0,94199.0,0.0469]
[1745853331587,0.02691685,94206.0,94200.0,0.10901292]
[1745853331797,0.00734526,94206.0,94200.0,0.51956722]
[1745853332000,0.00734526,94206.0,94200.0,0.51744444]
[1745853332203,0.003,94208.0,94200.0,0.51744444]
[1745853332514,0.003,94208.0,94202.0,0.01454085]
[1745853332715,4.574e-05,94217.0,94205.0,0.01454085]
[1745853332918,4.574e-05,94217.0,94203.0,0.51744444]
[1745853332919,4.574e-05,94217.0,94206.0,0.10901268]
[1745853333171,4.574e-05,94217.0,94208.0,0.01454085]
[1745853333564,4.574e-05,94217.0,94216.0,0.01454085]
[1745853333787,4.574e-05,94217.0,94216.0,0.57970749]
[1745853334031,4.574e-05,94217.0,94216.0,0.57758529]
[1745853336274,4.574e-05,94217.0,94216.0,0.56304444]
[1745853336688,4.574e-05,94217.0,94216.0,0.56504444]
[1745853336894,0.33995268,94225.0,94216.0,0.56504444]
[1745853337121,0.33995268,94225.0,94216.0,0.56518095]
[1745853337234,0.33995268,94225.0,94216.0,0.56318095]
[1745853339571,0.34195268,94225.0,94216.0,0.56318095]
[1745853340149,0.002,94225.0,94216.0,0.56318095]
[1745853340564,0.002,94225.0,94217.0,0.10689014]
[1745853341090,0.002,94225.0,94218.0,0.00212244]
[1745853341238,0.002,94225.0,94219.0,0.10689014]
[1745853341451,0.34734015,94239.0,94219.0,0.10689014]
[1745853341648,0.34734015,94239.0,94220.0,0.4105543]
[1745853341869,0.34734015,94239.0,94221.0,0.12143099]
[1745853342068,0.34734015,94239.0,94221.0,0.12355338]
[1745853342259,0.3408482,94247.0,94221.0,0.12143099]
[1745853342458,0.34,94239.0,94221.0,0.12143099]
[1745853342682,0.34,94239.0,94224.0,0.01454085]
[1745853342908,0.0008482,94247.0,94234.0,0.0476]
[1745853343111,0.0008482,94247.0,94235.0,0.11483334]
[1745853343312,0.3408482,94247.0,94235.0,0.11271138]
[1745853344261,0.3408482,94247.0,94236.0,0.01454085]
[1745853344470,0.3418482,94247.0,94237.0,0.10689014]
[1745853345069,0.3408482,94247.0,94237.0,0.10689014]
[1745853345492,0.3418482,94247.0,94237.0,0.10689014]
[1745853346737,0.3418482,94247.0,94238.0,0.01666281]
[1745853346738,0.0008482,94247.0,94238.0,0.01666281]
[1745853346910,0.0008482,94247.0,94242.0,0.01454085]
[1745853347116,0.0018482,94247.0,94244.0,0.01454085]
[1745853347314,0.0018482,94247.0,94246.0,0.01454085]
[1745853347515,0.0008482,94247.0,94246.0,0.12355262]
[1745853347836,0.0008482,94247.0,94246.0,0.53198529]
[1745853348218,0.0018482,94247.0,94246.0,0.53198529]
[1745853348585,0.00189395,94247.0,94246.0,0.53198529]
[1745853348790,0.00089395,94247.0,94246.0,0.53198529]
[1745853349031,0.00089395,94247.0,94246.0,0.58128529]
[1745853349242,0.00089395,94247.0,94246.0,0.79449588]
[1745853349446,0.00089395,94247.0,94246.0,0.58228529]
[1745853350283,0.00089395,94247.0,94246.0,0.58528529]
[1745853350703,0.00089395,94247.0,94246.0,0.58228529]
[1745853351117,0.00089395,94247.0,94246.0,0.79749588]
[1745853351319,0.0008482,94263.0,94251.0,0.01454085]
[1745853351527,0.00089394,94263.0,94253.0,0.01454085]
[1745853351727,0.00089394,94263.0,94255.0,0.01454085]
[1745853351919,0.00089394,94263.0,94256.0,0.10689014]
[1745853353111,0.00089394,94263.0,94258.0,0.048]
[1745853353340,0.00089394,94263.0,94259.0,0.51867191]
[1745853353517,0.00189394,94263.0,94259.0,0.51655049]
[1745853354123,0.00089394,94263.0,94259.0,0.51655049]
[1745853354345,0.00189394,94263.0,94259.0,0.51655049]
[1745853354972,0.00089394,94263.0,94259.0,0.51655049]
[1745853357166,0.00089394,94263.0,94260.0,0.40966035]
[1745853357364,0.00089394,94263.0,94261.0,0.10689014]
[1745853358394,0.00289394,94263.0,94261.0,0.10689014]
[1745853359761,0.00089394,94263.0,94261.0,0.10689014]
[1745853359969,0.00189394,94263.0,94261.0,0.10689014]
[1745853360173,0.00189394,94263.0,94260.0,0.40966035]
[1745853361262,0.00089394,94263.0,94249.0,0.40966035]
[1745853361496,0.36364657,94260.0,94249.0,0.40966035]
[1745853361730,0.00189394,94263.0,94249.0,0.40966035]
[1745853361731,0.34,94259.0,94250.0,0.00212187]
[1745853361942,0.34,94259.0,94249.0,0.51655049]
[1745853362589,0.00189394,94263.0,94249.0,0.51655049]
[1745853362799,0.00089394,94263.0,94250.0,0.00212175]
[1745853363107,0.00089394,94263.0,94249.0,0.51655049]
[1745853363313,0.34,94259.0,94249.0,0.40966035]
[1745853364104,0.34733768,94259.0,94249.0,0.40966035]
[1745853364874,0.35133768,94259.0,94249.0,0.40966035]
[1745853365295,0.0472,94258.0,94249.0,0.40966035]
[1745853365540,0.0472,94258.0,94226.0,0.40966035]
[1745853365541,0.49659014,94257.0,94226.0,0.40966035]
[1745853365749,0.34,94235.0,94226.0,0.40966035]
[1745853366160,0.34733768,94235.0,94226.0,0.40966035]
[1745853367396,0.35033768,94235.0,94226.0,0.40966035]
[1745853367600,0.01033768,94235.0,94227.0,0.00212256]
[1745853367795,0.003,94235.0,94228.0,0.10689014]
[1745853368016,0.003,94235.0,94226.0,0.40966035]
[1745853368211,0.003,94235.0,94226.0,0.51655049]
[1745853368429,0.003,94235.0,94226.0,0.40966035]
[1745853369265,0.36364657,94240.0,94226.0,0.40966035]
[1745853369670,0.001,94235.0,94226.0,0.40966035]
[1745853370210,0.01960742,94239.0,94226.0,0.40966035]
[1745853370713,0.36564657,94240.0,94226.0,0.40966035]
[1745853371070,0.36364657,94240.0,94226.0,0.40966035]
[1745853371452,0.34,94239.0,94226.0,0.40966035]
[1745853371876,0.001,94235.0,94226.0,0.40966035]
[1745853373285,0.34733768,94239.0,94226.0,0.40966035]
[1745853373662,0.35033768,94239.0,94226.0,0.40966035]
[1745853374110,0.36364657,94236.0,94226.0,0.40966035]
[1745853374311,0.3858,94235.0,94208.0,0.40966035]
[1745853374526,0.34,94216.0,94208.0,0.40966035]
[1745853375679,0.34,94216.0,94208.0,0.4097061]
[1745853376944,0.34,94216.0,94208.0,0.4117061]
[1745853380780,0.3858,94217.0,94208.0,0.4117061]
[1745853380960,0.0454,94215.0,94208.0,0.4117061]
[1745853381163,0.0454,94215.0,94208.0,0.4097061]
[1745853381941,0.10689014,94214.0,94208.0,4.575e-05]
[1745853382843,0.34,94212.0,94208.0,4.575e-05]
[1745853383051,0.44689014,94212.0,94208.0,4.575e-05]
[1745853384108,0.45089014,94212.0,94208.0,4.575e-05]
[1745853384304,0.01957564,94211.0,94208.0,4.575e-05]
[1745853384756,0.01957564,94210.0,94208.0,4.575e-05]
[1745853385041,0.01957564,94209.0,94208.0,4.575e-05]
[1745853385593,0.46646578,94209.0,94208.0,4.575e-05]
[1745853385947,0.44689014,94209.0,94208.0,4.575e-05]
[1745853386959,0.44889014,94209.0,94208.0,4.575e-05]
[1745853387528,0.46846578,94209.0,94208.0,4.575e-05]
[1745853391241,0.51366578,94209.0,94208.0,4.575e-05]
[1745853391697,2.10374278,94209.0,94208.0,4.575e-05]
[1745853391944,0.52100662,94209.0,94208.0,4.575e-05]
[1745853392202,0.35454085,94202.0,94193.0,0.0004241]
[1745853392456,0.35454085,94199.0,94193.0,0.00056061]
[1745853392647,0.35454085,94197.0,94193.0,0.00056061]
[1745853392851,0.34,94195.0,94193.0,0.00056061]
[1745853393055,3.56571814,94194.0,94193.0,0.00056061]
[1745853393276,2.97988114,94194.0,94193.0,0.00056061]
[1745853393479,2.8292022,94194.0,94193.0,0.00056061]
[1745853393630,2.83654304,94194.0,94193.0,0.00156061]
[1745853393836,2.70578804,94194.0,94193.0,0.00156061]
[1745853394037,2.58835504,94194.0,94193.0,0.00156061]
[1745853394239,2.58835504,94194.0,94193.0,0.00056061]
[1745853395495,2.70305411,94194.0,94193.0,0.00056061]
[1745853395693,2.66039589,94194.0,94193.0,0.00156061]
[1745853395933,2.68975639,94194.0,94193.0,0.00156061]
[1745853396555,0.34,94189.0,94187.0,0.0004241]
[1745853396747,0.34,94189.0,94188.0,0.00046974]
[1745853396748,5.02294449,94189.0,94188.0,0.00046974]
[1745853396943,4.24728327,94189.0,94188.0,0.00046974]
[1745853397383,4.25462411,94189.0,94188.0,0.00046974]
[1745853397861,4.26441153,94189.0,94188.0,0.00046974]
[1745853399209,4.23479253,94189.0,94188.0,0.00046974]
[1745853399418,4.24279253,94189.0,94188.0,0.00146974]
[1745853400133,0.35454085,94188.0,94161.0,7e-05]
[1745853400362,0.46143099,94182.0,94181.0,0.0140457]
[1745853400603,2.08502833,94182.0,94181.0,0.0140457]
[1745853400812,1.61072933,94182.0,94181.0,0.0140457]
[1745853401039,1.43213897,94182.0,94181.0,0.0140457]
[1745853401484,1.45024266,94182.0,94181.0,0.0140457]
[1745853402038,0.54559908,94182.0,94181.0,0.0140457]
[1745853402601,2.06729008,94182.0,94181.0,0.0150457]
[1745853402863,2.00718408,94182.0,94181.0,0.0150457]
[1745853403039,2.00718408,94182.0,94181.0,0.0140457]
[1745853403242,1.97191108,94182.0,94181.0,0.0150457]
[1745853403456,1.21210739,94182.0,94181.0,0.0150457]
[1745853403668,1.30806739,94182.0,94181.0,0.0150457]
[1745853408695,0.88378754,94182.0,94181.0,0.0150457]
[1745853409193,0.61587454,94182.0,94181.0,0.0150457]
[1745853410593,0.67746199,94182.0,94181.0,0.0150457]
[1745853410794,1.37588799,94182.0,94181.0,0.0150457]
[1745853411023,1.78469154,94182.0,94181.0,0.0150457]
[1745853411429,1.32850754,94182.0,94181.0,0.0150457]
[1745853412193,1.28002854,94182.0,94181.0,0.0150457]
[1745853412364,1.23728454,94182.0,94181.0,0.0150457]
[1745853412567,1.20977154,94182.0,94181.0,0.0150457]
[1745853412773,1.31666168,94182.0,94181.0,0.0150457]
[1745853412908,1.20977154,94182.0,94181.0,0.0150457]
[1745853414067,2.88559639,94182.0,94181.0,0.0150457]
[1745853414310,2.23282439,94182.0,94181.0,0.0150457]
[1745853414517,1.87954339,94182.0,94181.0,0.0150457]
[1745853414719,1.98643353,94182.0,94181.0,0.0150457]
[1745853414914,1.83204339,94182.0,94181.0,0.00707536]
[1745853415147,0.35454085,94181.0,94162.0,0.000424]
[1745853415353,0.35454085,94179.0,94162.0,0.000424]
[1745853415552,1.44078199,94179.0,94162.0,0.000424]
[1745853415727,1.48971813,94179.0,94162.0,0.000424]
[1745853415946,1.5621326,94179.0,94162.0,0.000424]
[1745853416151,1.57192002,94179.0,94162.0,0.000424]
[1745853416457,0.34,94172.0,94162.0,0.000424]
[1745853416647,0.34,94170.0,94162.0,0.000424]
[1745853416854,0.34,94168.0,94162.0,0.000424]
[1745853417087,0.34,94166.0,94162.0,0.000424]
[1745853417217,0.34,94164.0,94162.0,0.000424]
[1745853417418,0.5056137,94164.0,94162.0,0.000424]
[1745853418291,0.51295454,94164.0,94162.0,0.000424]
[1745853419893,0.51295454,94164.0,94163.0,0.20330716]
[1745853419894,0.51695454,94164.0,94163.0,0.20330716]
[1745853420301,0.4100644,94164.0,94163.0,0.20330716]
[1745853420652,0.0407039,94164.0,94163.0,0.25000716]
[1745853421651,0.0701894,94164.0,94163.0,0.25000716]
[1745853423056,0.0701894,94164.0,94163.0,0.22500716]
[1745853423255,0.0407039,94164.0,94163.0,0.22500716]
[1745853423458,0.17708913,94164.0,94163.0,0.17830716]
[1745853424277,0.07019899,94164.0,94163.0,0.17830716]
[1745853426143,0.07019899,94164.0,94163.0,0.22450716]
[1745853430180,0.0407039,94164.0,94163.0,0.22450716]
[1745853433764,0.0407039,94164.0,94163.0,0.27360716]
[1745853434129,0.03336306,94164.0,94163.0,0.27882779]
[1745853434726,0.02936306,94164.0,94163.0,0.27782779]
[1745853434953,0.00978742,94164.0,94163.0,0.27782779]
[1745853435160,0.00978742,94164.0,94163.0,0.38471793]
[1745853436626,0.00978742,94177.0,94164.0,0.0454]
[1745853436823,0.00978742,94177.0,94165.0,0.0454]
[1745853437062,0.00734084,94176.0,94165.0,0.04702166]
[1745853437854,0.00978742,94175.0,94167.0,0.0499]
[1745853438055,0.01712826,94175.0,94167.0,0.0499]
[1745853438209,0.01712826,94175.0,94168.0,0.00360257]
[1745853438409,0.01712826,94175.0,94169.0,0.0499]
[1745853438736,0.01712826,94175.0,94170.0,0.00359806]
[1745853439135,0.01078742,94175.0,94170.0,0.00359806]
[1745853439329,0.00978742,94174.0,94170.0,0.00359806]
[1745853439532,0.00978742,94174.0,94171.0,0.0455]
[1745853439735,0.00978742,94174.0,94171.0,0.0954]
[1745853440910,0.01712826,94173.0,94171.0,0.0954]
[1745853441475,0.01712826,94173.0,94172.0,0.00359355]
[1745853442857,0.03780692,94173.0,94172.0,0.00359355]
[1745853443058,0.03780692,94173.0,94166.0,0.0487]
[1745853443263,0.03780692,94173.0,94172.0,0.00359355]
[1745853443391,0.03780692,94173.0,94166.0,0.0487]
[1745853443591,0.03780692,94173.0,94167.0,0.00360482]
[1745853443817,0.0270195,94172.0,94166.0,0.0487]
[1745853444218,0.00978742,94171.0,94167.0,0.00513358]
[1745853444445,0.01967866,94170.0,94167.0,0.00513358]
[1745853444679,0.01967866,94170.0,94163.0,0.17730716]
[1745853445155,0.03680692,94169.0,94163.0,0.17730716]
[1745853445351,0.03680692,94169.0,94164.0,0.00158868]
[1745853445352,0.02560283,94168.0,94164.0,0.00158868]
[1745853445504,0.10689014,94168.0,94164.0,0.00158868]
[1745853445723,0.10689014,94168.0,94163.0,0.17730716]
[1745853445947,0.01967866,94167.0,94163.0,0.17730716]
[1745853446150,0.34,94165.0,94163.0,0.17730716]
[1745853446354,0.44689014,94164.0,94163.0,0.17730716]
[1745853446697,0.47635622,94164.0,94163.0,0.17730716]
[1745853447113,0.48369706,94164.0,94163.0,0.17730716]
[1745853448159,0.54175477,94164.0,94163.0,0.17730716]
[1745853448544,0.48369706,94164.0,94163.0,0.17830716]
[1745853448744,0.48369706,94164.0,94163.0,0.17989783]
[1745853448940,0.48369706,94164.0,94163.0,0.17889783]
[1745853449473,0.48769706,94164.0,94163.0,0.17989783]
[1745853451244,0.78965146,94164.0,94163.0,0.17989783]
[1745853451443,0.74895629,94164.0,94163.0,0.17989783]
[1745853451645,3.47332096,94164.0,94163.0,0.17830716]
[1745853451787,3.48385887,94164.0,94163.0,0.1650197]
[1745853451988,3.47985887,94164.0,94163.0,0.1640197]
[1745853452191,3.48485887,94164.0,94163.0,0.1650197]
[1745853452607,3.45315887,94164.0,94150.0,0.0104241]
[1745853452978,0.72145345,94152.0,94150.0,0.0104241]
[1745853453190,5.17421581,94152.0,94150.0,0.0104241]
[1745853453404,3.01329781,94152.0,94150.0,0.0104241]
[1745853453613,2.98379381,94152.0,94150.0,0.0104241]
[1745853453760,1.68378765,94152.0,94150.0,0.0104241]
[1745853453940,1.69357507,94152.0,94150.0,0.0104241]
[1745853454172,1.6165939,94152.0,94150.0,0.0104241]
[1745853454342,1.7124739,94152.0,94150.0,0.0104241]
[1745853455336,1.74193059,94152.0,94151.0,0.005]
[1745853455541,1.7124739,94152.0,94151.0,0.005]
[1745853455960,1.7124739,94152.0,94151.0,0.004]
[1745853456158,0.70114504,94152.0,94151.0,0.004]
[1745853456373,0.70414504,94152.0,94151.0,0.005]
[1745853456576,4.04400804,94152.0,94151.0,0.005]
[1745853456856,3.33000704,94152.0,94151.0,0.005]
[1745853458068,3.37620704,94152.0,94151.0,0.005]
[1745853458439,3.4056422,94152.0,94151.0,0.005]
[1745853458637,3.37620704,94152.0,94151.0,0.005]
[1745853458869,3.43742958,94152.0,94151.0,0.005]
[1745853459066,3.43742958,94152.0,94137.0,0.0083166]
[1745853459067,0.56888136,94144.0,94137.0,0.0083166]
[1745853459375,4.81105039,94144.0,94137.0,0.0083166]
[1745853459588,4.51246405,94144.0,94137.0,0.0083166]
[1745853460250,4.52959231,94144.0,94137.0,0.0083166]
[1745853460447,0.5669949,94138.0,94137.0,0.0083166]
[1745853460600,0.01062326,94133.0,94125.0,0.0004242]
[1745853460784,0.46143099,94129.0,94125.0,0.0004242]
[1745853460981,3.98464265,94129.0,94125.0,0.0004242]
[1745853461185,2.34559365,94129.0,94125.0,0.0004242]
[1745853461413,2.13093449,94129.0,94125.0,0.0004242]
[1745853461617,2.23664191,94129.0,94125.0,0.0004242]
[1745853461996,2.14072191,94129.0,94128.0,0.003]
[1745853462195,1.47506391,94129.0,94128.0,0.003]
[1745853462508,1.47506391,94129.0,94128.0,0.002]
[1745853462707,1.49103405,94129.0,94128.0,0.002]
[1745853463332,1.48006391,94129.0,94128.0,0.002]
[1745853464717,1.59661828,94129.0,94128.0,0.002]
[1745853464916,1.48006391,94129.0,94128.0,0.002]
[1745853465119,1.38414391,94129.0,94128.0,0.002]
[1745853465318,1.48006391,94129.0,94128.0,0.002]
[1745853465517,1.58695405,94129.0,94128.0,0.002]
[1745853465718,1.6187538,94129.0,94128.0,0.002]
[1745853466399,1.48006391,94129.0,94128.0,0.002]
[1745853467991,1.51207617,94129.0,94128.0,0.002]
[1745853468730,1.41615617,94129.0,94128.0,0.002]
[1745853468945,1.51315617,94129.0,94128.0,0.002]
[1745853469152,0.35454085,94128.0,94125.0,0.0004242]
[1745853469291,0.46143099,94126.0,94125.0,0.0004242]
[1745853469490,5.29084325,94126.0,94125.0,0.0004242]
[1745853469714,5.27850965,94126.0,94125.0,0.0004242]
[1745853469919,5.28585049,94126.0,94125.0,0.0004242]
[1745853470535,5.29563791,94126.0,94125.0,0.0004242]
[1745853470963,5.30063791,94126.0,94125.0,0.0014242]
[1745853471322,3.91173091,94126.0,94125.0,0.0014242]
[1745853472136,0.50323791,94126.0,94125.0,0.0014242]
[1745853472336,2.34176591,94126.0,94125.0,0.0014242]
[1745853472566,2.57689291,94126.0,94125.0,0.0014242]
[1745853473008,2.47989291,94126.0,94125.0,0.0014242]
[1745853473213,2.57689291,94126.0,94125.0,0.0014242]
[1745853473630,2.09684791,94126.0,94125.0,0.0014242]
[1745853473875,0.91280106,94126.0,94125.0,0.0014242]
[1745853474261,0.92734191,94126.0,94125.0,0.0014242]
[1745853474923,0.88984391,94126.0,94125.0,0.0014242]
[1745853475159,0.87030306,94126.0,94125.0,0.0014242]
[1745853475373,0.58069706,94126.0,94125.0,0.0510242]
[1745853476524,0.14369706,94126.0,94125.0,0.0510242]
[1745853476729,0.04180692,94126.0,94125.0,0.10532662]
[1745853476937,0.04180692,94126.0,94125.0,0.10972069]
[1745853477144,0.00734084,94135.0,94125.0,0.10972069]
[1745853477345,0.00734084,94135.0,94126.0,0.0476]
[1745853477540,0.00734084,94135.0,94127.0,0.0481]
[1745853477767,0.34734084,94135.0,94127.0,0.0481]
[1745853478308,0.34734084,94135.0,94128.0,0.0476]
[1745853478548,0.34734084,94135.0,94129.0,0.0481]
[1745853478800,0.34834084,94135.0,94129.0,0.0481]
[1745853479056,0.34834084,94135.0,94130.0,0.0456]
[1745853479269,0.34834084,94135.0,94130.0,0.0946]
[1745853479477,0.34834084,94135.0,94132.0,0.049]
[1745853480301,0.34734084,94135.0,94132.0,0.049]
[1745853480720,0.00734084,94134.0,94132.0,0.049]
[1745853481450,0.11423098,94134.0,94132.0,0.051]
[1745853481655,0.44689014,94133.0,94132.0,0.051]
[1745853481840,0.45423098,94133.0,94132.0,0.051]
[1745853482279,0.34734084,94133.0,94132.0,0.051]
[1745853482396,0.34734084,94133.0,94132.0,0.049]
[1745853484108,0.34734084,94133.0,94132.0,0.053]
[1745853484524,0.34734084,94133.0,94132.0,0.049]
[1745853484737,0.34734084,94133.0,94132.0,0.052]
[1745853486488,0.34734084,94133.0,94132.0,0.05192772]
[1745853487735,0.45423098,94133.0,94132.0,0.05192772]
[1745853489447,0.47388499,94133.0,94132.0,0.05192772]
[1745853489903,1.78475799,94133.0,94132.0,0.003]
[1745853490125,2.43762251,94133.0,94132.0,0.003]
[1745853490354,2.48027751,94133.0,94132.0,0.003]
[1745853490574,2.49010171,94133.0,94132.0,0.003]
[1745853490795,2.49010171,94133.0,94125.0,0.0004242]
[1745853490796,0.35454085,94132.0,94125.0,0.0004242]
[1745853491022,0.35454085,94128.0,94125.0,0.0004242]
[1745853491224,0.35454085,94126.0,94125.0,0.0004242]
[1745853491431,1.26346066,94126.0,94125.0,0.0004242]
[1745853491634,1.29293887,94126.0,94125.0,0.0004242]
[1745853492423,1.30027971,94126.0,94096.0,0.0452]
[1745853492644,0.35454085,94119.0,94101.0,0.0453]
[1745853492888,0.35454085,94117.0,94101.0,0.0453]
[1745853493091,0.34,94115.0,94101.0,0.0453]
[1745853493271,1.38346065,94114.0,94101.0,0.0453]
[1745853493474,1.40311466,94114.0,94101.0,0.0453]
[1745853493673,0.47388499,94114.0,94101.0,0.0453]
[1745853493872,0.4740219,94114.0,94101.0,0.0453]
[1745853494094,0.4838461,94114.0,94101.0,0.0453]
[1745853496230,0.9811201,94114.0,94101.0,0.0453]
[1745853496611,0.6349931,94114.0,94101.0,0.0453]
[1745853496788,0.6359931,94114.0,94101.0,0.0453]
[1745853497755,0.4848461,94114.0,94101.0,0.0453]
[1745853497998,0.7319131,94114.0,94101.0,0.0453]
[1745853498201,0.80510441,94114.0,94101.0,0.0453]
[1745853498582,0.7319131,94114.0,94101.0,0.0453]
[1745853499257,0.6055561,94114.0,94101.0,0.0453]
[1745853502236,0.62009695,94114.0,94096.0,0.0452]
[1745853502434,0.64959147,94114.0,94096.0,0.0452]
[1745853504821,0.63505062,94114.0,94111.0,0.0471]
[1745853505003,0.5832461,94114.0,94111.0,0.0471]
[1745853505235,0.6237581,94114.0,94111.0,0.0471]
[1745853505471,0.7221581,94114.0,94111.0,0.0471]
[1745853506005,0.70250409,94114.0,94111.0,0.0471]
[1745853506903,0.56359209,94114.0,94111.0,0.0471]
[1745853507313,0.55376789,94114.0,94111.0,0.0471]
[1745853508163,1.63066389,94114.0,94111.0,0.0471]
[1745853508535,1.73755403,94114.0,94111.0,0.0471]
[1745853508891,1.63066389,94114.0,94111.0,0.0471]
[1745853511350,1.63066389,94114.0,94096.0,0.0452]
[1745853511559,1.63066389,94114.0,94102.0,0.049]
[1745853512338,1.64051128,94114.0,94102.0,0.049]
[1745853514207,1.63066389,94114.0,94102.0,0.049]
[1745853518691,1.6297076,94114.0,94102.0,0.049]
[1745853519514,1.65925371,94114.0,94102.0,0.049]
[1745853521628,1.65925371,94114.0,94096.0,0.0452]
[1745853521629,1.65925371,94114.0,94113.0,0.0463241]
[1745853522151,1.5313076,94114.0,94113.0,0.0463241]
[1745853522475,1.56089392,94114.0,94113.0,0.0463241]
[1745853523022,1.54651792,94114.0,94113.0,0.0463241]
[1745853527520,1.53588592,94114.0,94113.0,0.0463241]
[1745853527694,1.51468592,94114.0,94113.0,0.0463241]
[1745853527896,1.49957492,94114.0,94113.0,0.0463241]
[1745853528097,1.48927492,94114.0,94113.0,0.0463241]
[1745853529714,0.48399792,94114.0,94113.0,0.0463241]
[1745853530866,1.48299692,94114.0,94113.0,0.0463241]
[1745853531221,1.48299692,94114.0,94113.0,0.0004241]
[1745853533540,1.47236092,94114.0,94113.0,0.0004241]
[1745853535450,0.48399792,94114.0,94113.0,0.0004241]
[1745853540125,1.65072892,94114.0,94113.0,0.0004241]
[1745853540732,1.77215991,94114.0,94113.0,0.0004241]
[1745853540930,3.56496291,94114.0,94113.0,0.0004241]
[1745853541130,3.47619677,94114.0,94113.0,0.0004241]
[1745853541375,2.27702677,94114.0,94113.0,0.0004241]
[1745853541550,1.77391677,94114.0,94113.0,0.0004241]
[1745853542171,1.76195194,94114.0,94113.0,0.0004241]
[1745853544073,1.78171914,94114.0,94113.0,0.0004241]
[1745853544712,1.79160127,94114.0,94113.0,0.0004241]
[1745853544914,1.89849141,94114.0,94113.0,0.0004241]
[1745853545119,1.79160127,94114.0,94113.0,0.0004241]
[1745853545633,0.62602327,94114.0,94113.0,0.0004241]
[1745853545771,3.47786127,94114.0,94113.0,0.0004241]
[1745853545972,3.54824527,94114.0,94113.0,0.0004241]
[1745853546180,3.33669942,94114.0,94113.0,0.0004241]
[1745853546393,0.51372242,94114.0,94113.0,0.0004241]
[1745853546591,0.48407309,94114.0,94113.0,0.0004241]
[1745853546808,0.65833309,94114.0,94113.0,0.0004241]
[1745853552966,0.74848325,94114.0,94113.0,0.0004241]
[1745853553184,0.67287394,94114.0,94113.0,0.0004241]
[1745853553412,0.65833309,94114.0,94113.0,0.0004241]
[1745853553855,0.63375109,94114.0,94113.0,0.0004241]
[1745853555185,0.48407309,94114.0,94113.0,0.0004241]
[1745853555612,0.60014109,94114.0,94113.0,0.0004241]
[1745853555847,0.61363309,94114.0,94113.0,0.0004241]
[1745853558063,0.48407309,94114.0,94113.0,0.0004241]
[1745853559597,0.03813924,94114.0,94113.0,0.0965241]
[1745853559836,0.00855292,94114.0,94113.0,0.0965241]
[1745853560057,0.09423871,94149.0,94114.0,0.0946]
[1745853560277,0.09423871,94149.0,94116.0,0.0946]
[1745853560495,0.34,94133.0,94121.0,0.0946]
[1745853560717,0.34,94133.0,94117.0,0.0938]
[1745853560986,0.09423871,94149.0,94118.0,0.0938]
[1745853561204,0.34,94133.0,94122.0,0.045]
[1745853562414,0.34,94133.0,94122.0,0.046]
[1745853567005,0.34,94133.0,94123.0,0.0486]
[1745853567208,0.36364657,94150.0,94124.0,0.0453]
[1745853567366,0.36364657,94150.0,94125.0,0.00949]
[1745853567568,0.36364657,94150.0,94127.0,0.0486]
[1745853567771,0.36364657,94150.0,94128.0,0.0453]
[1745853568153,0.34,94133.0,94128.0,0.0453]
[1745853569192,0.34,94133.0,94128.0,0.0463]
[1745853570658,0.34,94133.0,94128.0,0.0453]
[1745853570868,0.341,94133.0,94128.0,0.0483]
[1745853572363,0.341,94133.0,94128.0,0.05799]
[1745853572537,0.341,94133.0,94129.0,0.0499]
[1745853573520,0.34,94133.0,94129.0,0.0499]
[1745853573981,0.341,94133.0,94129.0,0.0529]
[1745853574924,0.34837823,94133.0,94129.0,0.0529]
[1745853576254,0.341,94133.0,94129.0,0.0529]
[1745853583015,0.001,94133.0,94130.0,0.10032458]
[1745853583175,0.001,94133.0,94130.0,0.11751374]
[1745853583405,0.001,94133.0,94132.0,0.0927]
[1745853583597,0.001,94133.0,94132.0,0.61231457]
[1745853583802,0.001,94133.0,94132.0,0.82265773]
[1745853583977,0.0008486,94152.0,94133.0,0.0927]
[1745853584197,0.0008486,94152.0,94133.0,0.19959014]
[1745853586806,0.0008486,94152.0,94133.0,0.20359014]
[1745853587220,1.34,94134.0,94133.0,0.0967]
[1745853588469,1.0,94134.0,94133.0,0.20359014]
[1745853588670,1.0,94134.0,94133.0,0.22398614]
[1745853588873,1.0,94134.0,94133.0,0.61419014]
[1745853593725,1.0,94134.0,94133.0,0.82665548]
[1745853593932,1.0,94134.0,94133.0,0.61419014]
[1745853594625,1.0,94134.0,94133.0,0.61019014]
[1745853594834,1.0,94134.0,94133.0,0.61810307]
[1745853596382,1.001,94134.0,94133.0,0.62310307]
[1745853602999,1.341,94134.0,94133.0,0.5083]
[1745853603209,1.341,94134.0,94133.0,0.4156]
[1745853603647,1.36072163,94134.0,94133.0,0.4156]
[1745853603829,1.36072163,94134.0,94133.0,0.61439014]
[1745853603830,1.02072163,94134.0,94133.0,0.61439014]
[1745853604069,1.01972163,94134.0,94133.0,0.60939014]
[1745853604300,1.0,94134.0,94133.0,0.5025]
[1745853604517,1.0,94134.0,94133.0,0.5065]
[1745853604937,1.0,94134.0,94133.0,0.4146]
[1745853604938,1.34,94134.0,94133.0,0.4146]
[1745853605162,1.44689014,94134.0,94133.0,0.004]
[1745853605363,1.86760863,94134.0,94133.0,0.004]
[1745853605591,1.92106386,94134.0,94133.0,0.004]
[1745853605816,1.92106386,94134.0,94120.0,0.01]
[1745853605817,0.5670078,94133.0,94120.0,0.01]
[1745853606068,0.35454085,94129.0,94120.0,0.01]
[1745853606298,0.35454085,94127.0,94120.0,0.01]
[1745853606515,0.34,94125.0,94120.0,0.01]
[1745853606761,0.34,94123.0,94120.0,0.01]
[1745853606975,0.01972542,94122.0,94120.0,0.01]